[Event "*** Titled Tuesday 3|2 Blitz"]
[Site "Chess.com"]
[Date "2016.06.07"]
[Round "4"]
[White "bilelou"]
[Black "SCIM"]
[Result "1/2-1/2"]
[WhiteElo "2172"]
[BlackElo "2262"]
[TimeControl "180+2"]
[EndTime "11:50:48 PDT"]
[Termination "Game drawn - insufficient material"]

1. b3 {[%clk 0:03:01.9]} 1... e5 {[%clk 0:02:58.5]} 2. Bb2 {[%clk 0:03:01.3]}
2... Nc6 {[%clk 0:02:59.8]} 3. e3 {[%clk 0:02:59.7]} 3... Nf6 {[%clk 0:03:00.2]}
4. Bb5 {[%clk 0:02:54.2]} 4... Bd6 {[%clk 0:03:01.2]} 5. Na3 {[%clk 0:02:49.9]}
5... a6 {[%clk 0:03:01]} 6. Bxc6 {[%clk 0:02:50.7]} 6... dxc6 {[%clk 0:03:01]}
7. Nc4 {[%clk 0:02:52.2]} 7... Qe7 {[%clk 0:03:00.7]} 8. Ne2 {[%clk 0:02:53.8]}
8... b5 {[%clk 0:02:58.9]} 9. Nxd6+ {[%clk 0:02:54.3]} 9... cxd6 {[%clk
0:03:00.3]} 10. O-O {[%clk 0:02:55]} 10... O-O {[%clk 0:03:00.8]} 11. f4 {[%clk
0:02:56]} 11... e4 {[%clk 0:02:39.9]} 12. Qe1 {[%clk 0:02:55.4]} 12... h6 {[%clk
0:02:32.2]} 13. f5 {[%clk 0:02:49.5]} 13... Bd7 {[%clk 0:02:14.3]} 14. h3 {[%clk
0:02:42.6]} 14... Kh8 {[%clk 0:02:08.9]} 15. Qg3 {[%clk 0:02:41.8]} 15... Rg8
{[%clk 0:02:06.6]} 16. Rae1 {[%clk 0:02:41.8]} 16... Nh7 {[%clk 0:02:02.6]} 17.
Nf4 {[%clk 0:02:40.6]} 17... Bxf5 {[%clk 0:01:53.8]} 18. Nd5 {[%clk 0:02:34.8]}
18... cxd5 {[%clk 0:01:41.9]} 19. Rxf5 {[%clk 0:02:30.1]} 19... Rac8 {[%clk
0:01:37.8]} 20. Ref1 {[%clk 0:02:26.2]} 20... f6 {[%clk 0:01:36]} 21. Bc3 {[%clk
0:02:23.2]} 21... d4 {[%clk 0:01:26.3]} 22. exd4 {[%clk 0:02:18.3]} 22... e3
{[%clk 0:01:25.2]} 23. Re1 {[%clk 0:01:56.5]} 23... Qd7 {[%clk 0:01:13.7]} 24.
Rf3 {[%clk 0:01:51]} 24... exd2 {[%clk 0:01:14.4]} 25. Rd1 {[%clk 0:01:52]}
25... Ng5 {[%clk 0:01:12.7]} 26. Re3 {[%clk 0:01:52.9]} 26... d5 {[%clk
0:01:09.7]} 27. Bxd2 {[%clk 0:01:53.5]} 27... Ne4 {[%clk 0:01:05.6]} 28. Qg6
{[%clk 0:01:53.6]} 28... Rxc2 {[%clk 0:00:56.3]} 29. Bb4 {[%clk 0:01:39.7]}
29... Qe8 {[%clk 0:00:49.5]} 30. Qf5 {[%clk 0:01:36]} 30... Rxa2 {[%clk
0:00:21.5]} 31. Qxd5 {[%clk 0:01:32]} 31... f5 {[%clk 0:00:15.4]} 32. Qxf5
{[%clk 0:01:24.4]} 32... Nd6 {[%clk 0:00:16]} 33. Qf4 {[%clk 0:00:53.7]} 33...
Qc6 {[%clk 0:00:15.6]} 34. Rg3 {[%clk 0:00:35]} 34... Ne4 {[%clk 0:00:16.2]} 35.
Rg4 {[%clk 0:00:20.5]} 35... Nf6 {[%clk 0:00:14.8]} 36. Rg6 {[%clk 0:00:21.1]}
36... Qc2 {[%clk 0:00:15.1]} 37. Rd2 {[%clk 0:00:21.2]} 37... Qxg6 {[%clk
0:00:11.8]} 38. Rxa2 {[%clk 0:00:19.7]} 38... Qb1+ {[%clk 0:00:12.5]} 39. Kh2
{[%clk 0:00:20.7]} 39... Qxa2 {[%clk 0:00:14.1]} 40. Bd6 {[%clk 0:00:22.2]}
40... Qxb3 {[%clk 0:00:14.4]} 41. Be5 {[%clk 0:00:23.7]} 41... Qe6 {[%clk
0:00:15.1]} 42. g4 {[%clk 0:00:22.8]} 42... Nd5 {[%clk 0:00:15.6]} 43. Qe4
{[%clk 0:00:23.2]} 43... Rf8 {[%clk 0:00:15.8]} 44. Bxg7+ {[%clk 0:00:24.1]}
44... Kxg7 {[%clk 0:00:16.3]} 45. Qxe6 {[%clk 0:00:25]} 45... Nf4 {[%clk
0:00:17.8]} 46. Qxa6 {[%clk 0:00:24.2]} 46... Rf7 {[%clk 0:00:16.6]} 47. Qxb5
{[%clk 0:00:25.3]} 47... Ng6 {[%clk 0:00:18.2]} 48. d5 {[%clk 0:00:24.2]} 48...
Kf6 {[%clk 0:00:18.4]} 49. Qb2+ {[%clk 0:00:24.4]} 49... Ne5 {[%clk 0:00:17.7]}
50. d6 {[%clk 0:00:24.9]} 50... Rd7 {[%clk 0:00:18]} 51. Qd4 {[%clk 0:00:22.9]}
51... Ke6 {[%clk 0:00:17.8]} 52. Qe3 {[%clk 0:00:24]} 52... Rxd6 {[%clk
0:00:17.2]} 53. Qxh6+ {[%clk 0:00:25.6]} 53... Kd5 {[%clk 0:00:18.7]} 54. Qd2+
{[%clk 0:00:26.4]} 54... Ke6 {[%clk 0:00:18.9]} 55. Qe2 {[%clk 0:00:27.3]} 55...
Rd2 {[%clk 0:00:18.5]} 56. Qxd2 {[%clk 0:00:22.1]} 56... Nf3+ {[%clk 0:00:19.4]}
57. Kg3 {[%clk 0:00:23.6]} 57... Nxd2 {[%clk 0:00:20.9]} 58. g5 {[%clk
0:00:09.8]} 58... Kf5 {[%clk 0:00:21.3]} 59. h4 {[%clk 0:00:11.3]} 59... Ne4+
{[%clk 0:00:21.7]} 60. Kf3 {[%clk 0:00:12.5]} 60... Nxg5+ {[%clk 0:00:22.1]} 61.
hxg5 {[%clk 0:00:13.5]} 61... Kxg5 {[%clk 0:00:22.8]} 1/2-1/2

[Event "*** Titled Tuesday 3|2 Blitz"]
[Site "Chess.com"]
[Date "2016.06.07"]
[Round "4"]
[White "josiwales"]
[Black "Zhani-Z"]
[Result "0-1"]
[WhiteElo "2120"]
[BlackElo "2225"]
[TimeControl "180+2"]
[EndTime "11:51:12 PDT"]
[Termination "Zhani-Z won by checkmate"]

1. e4 {[%clk 0:03:01.9]} 1... e5 {[%clk 0:02:57.7]} 2. Nf3 {[%clk 0:03:02.7]}
2... Nc6 {[%clk 0:02:58.4]} 3. Bc4 {[%clk 0:03:04]} 3... Bc5 {[%clk 0:02:58.5]}
4. O-O {[%clk 0:03:04.1]} 4... d6 {[%clk 0:02:58.4]} 5. c3 {[%clk 0:03:03.1]}
5... Nf6 {[%clk 0:02:57.7]} 6. d4 {[%clk 0:03:03.3]} 6... Bb6 {[%clk 0:02:58.1]}
7. dxe5 {[%clk 0:03:01]} 7... Nxe5 {[%clk 0:02:58.9]} 8. Nxe5 {[%clk 0:02:58.2]}
8... dxe5 {[%clk 0:02:59.7]} 9. Qxd8+ {[%clk 0:02:59]} 9... Kxd8 {[%clk
0:03:00.6]} 10. Bg5 {[%clk 0:03:00.5]} 10... Be6 {[%clk 0:02:33.2]} 11. Bxe6
{[%clk 0:02:58.2]} 11... fxe6 {[%clk 0:02:33.5]} 12. Nd2 {[%clk 0:02:59.2]}
12... Ke8 {[%clk 0:02:28.9]} 13. Rfe1 {[%clk 0:02:55.4]} 13... Ng4 {[%clk
0:02:05.3]} 14. Re2 {[%clk 0:02:51.5]} 14... c6 {[%clk 0:01:22.8]} 15. h3 {[%clk
0:02:49.9]} 15... Nf6 {[%clk 0:01:23.1]} 16. Nc4 {[%clk 0:02:51.1]} 16... Bc7
{[%clk 0:01:23.7]} 17. Rd1 {[%clk 0:02:51.2]} 17... Ke7 {[%clk 0:01:06]} 18. f4
{[%clk 0:02:47.4]} 18... h6 {[%clk 0:00:59.7]} 19. Bh4 {[%clk 0:02:47.8]} 19...
Ke8 {[%clk 0:00:35.3]} 20. fxe5 {[%clk 0:02:48.4]} 20... Nd7 {[%clk 0:00:35.9]}
21. Nd6+ {[%clk 0:02:48.4]} 21... Bxd6 {[%clk 0:00:36.8]} 22. Rxd6 {[%clk
0:02:47.5]} 22... Nf8 {[%clk 0:00:25.4]} 23. Red2 {[%clk 0:02:45.1]} 23... Ng6
{[%clk 0:00:24]} 24. Bg3 {[%clk 0:02:37.8]} 24... Nf8 {[%clk 0:00:23.2]} 25. h4
{[%clk 0:02:33.1]} 25... g6 {[%clk 0:00:17]} 26. h5 {[%clk 0:02:26.8]} 26... g5
{[%clk 0:00:16.3]} 27. Bf2 {[%clk 0:02:26.9]} 27... Rh7 {[%clk 0:00:15.5]} 28.
Bc5 {[%clk 0:02:24.4]} 28... Rd7 {[%clk 0:00:14.5]} 29. Rf2 {[%clk 0:02:20.9]}
29... Rf7 {[%clk 0:00:08.2]} 30. Rfd2 {[%clk 0:02:17.7]} 30... Rd7 {[%clk
0:00:08]} 31. a4 {[%clk 0:02:17.1]} 31... b6 {[%clk 0:00:08.1]} 32. Ba3 {[%clk
0:02:16.7]} 32... c5 {[%clk 0:00:09]} 33. b4 {[%clk 0:02:17.9]} 33... cxb4
{[%clk 0:00:08.8]} 34. Bxb4 {[%clk 0:02:16.9]} 34... Rc8 {[%clk 0:00:10.2]} 35.
Kf2 {[%clk 0:02:10]} 35... Rf7+ {[%clk 0:00:10.6]} 36. Ke3 {[%clk 0:02:10.7]}
36... Rd7 {[%clk 0:00:11.3]} 37. R2d4 {[%clk 0:02:09.9]} 37... Rxd6 {[%clk
0:00:12.1]} 38. exd6 {[%clk 0:02:09.5]} 38... Nd7 {[%clk 0:00:12.9]} 39. e5
{[%clk 0:02:03.1]} 39... a5 {[%clk 0:00:12.8]} 40. Ke4 {[%clk 0:01:51.6]} 40...
axb4 {[%clk 0:00:12.2]} 41. cxb4 {[%clk 0:01:53.5]} 41... Rc1 {[%clk 0:00:11.1]}
42. a5 {[%clk 0:01:49.8]} 42... bxa5 {[%clk 0:00:10.2]} 43. bxa5 {[%clk
0:01:50.5]} 43... Re1+ {[%clk 0:00:11.1]} 44. Kf3 {[%clk 0:01:51.2]} 44... Nxe5+
{[%clk 0:00:11.5]} 45. Kf2 {[%clk 0:01:52.6]} 45... Ra1 {[%clk 0:00:12.8]} 46.
d7+ {[%clk 0:01:40]} 46... Nxd7 {[%clk 0:00:12.6]} 47. Rd6 {[%clk 0:01:41.4]}
47... Ke7 {[%clk 0:00:13.3]} 48. Ra6 {[%clk 0:01:42.5]} 48... Nc5 {[%clk
0:00:14.2]} 49. Ra7+ {[%clk 0:01:42.9]} 49... Kd6 {[%clk 0:00:15.2]} 50. Rh7
{[%clk 0:01:42.5]} 50... Rxa5 {[%clk 0:00:13.2]} 51. Rxh6 {[%clk 0:01:43.8]}
51... Ke5 {[%clk 0:00:14.1]} 52. Rg6 {[%clk 0:01:43.5]} 52... Kf5 {[%clk
0:00:14.4]} 53. Rg8 {[%clk 0:01:43.9]} 53... Ne4+ {[%clk 0:00:14.6]} 54. Ke3
{[%clk 0:01:43.8]} 54... Ra3+ {[%clk 0:00:15.1]} 55. Kd4 {[%clk 0:01:44.1]}
55... e5+ {[%clk 0:00:16]} 56. Kc4 {[%clk 0:01:41.7]} 56... Nf6 {[%clk
0:00:16.2]} 57. Rf8 {[%clk 0:01:37]} 57... Ra1 {[%clk 0:00:16.9]} 58. g4+ {[%clk
0:01:36.7]} 58... Kxg4 {[%clk 0:00:17.2]} 59. h6 {[%clk 0:01:20.5]} 59... Ra6
{[%clk 0:00:16]} 60. Kb5 {[%clk 0:01:18.1]} 60... Re6 {[%clk 0:00:15.8]} 61. Rf7
{[%clk 0:01:17.1]} 61... e4 {[%clk 0:00:16.4]} 62. h7 {[%clk 0:01:13.8]} 62...
Nxh7 {[%clk 0:00:17]} 63. Rxh7 {[%clk 0:01:15.2]} 63... e3 {[%clk 0:00:17.9]}
64. Rh1 {[%clk 0:01:16.7]} 64... e2 {[%clk 0:00:19]} 65. Re1 {[%clk 0:01:18.2]}
65... Kf3 {[%clk 0:00:20]} 66. Kc4 {[%clk 0:01:19.1]} 66... Kf2 {[%clk
0:00:20.8]} 67. Kd5 {[%clk 0:01:20.5]} 67... Kxe1 {[%clk 0:00:20.5]} 68. Kxe6
{[%clk 0:01:22.4]} 68... Kf2 {[%clk 0:00:21.9]} 69. Kf5 {[%clk 0:01:24.3]} 69...
e1=Q {[%clk 0:00:20.9]} 70. Kxg5 {[%clk 0:01:26.2]} 70... Qe4 {[%clk 0:00:22.2]}
71. Kf6 {[%clk 0:01:27.3]} 71... Qd5 {[%clk 0:00:23.1]} 72. Kg7 {[%clk
0:01:29.2]} 72... Qe6 {[%clk 0:00:24]} 73. Kf8 {[%clk 0:01:31.1]} 73... Qd7
{[%clk 0:00:24.6]} 74. Kg8 {[%clk 0:01:32]} 74... Kf3 {[%clk 0:00:25.8]} 75. Kh8
{[%clk 0:01:33.9]} 75... Kf4 {[%clk 0:00:27]} 76. Kg8 {[%clk 0:01:35.5]} 76...
Kg5 {[%clk 0:00:28.2]} 77. Kf8 {[%clk 0:01:37.4]} 77... Kg6 {[%clk 0:00:28.6]}
78. Kg8 {[%clk 0:01:39.3]} 78... Qg7# {[%clk 0:00:29.4]} 0-1

[Event "*** Titled Tuesday 3|2 Blitz"]
[Site "Chess.com"]
[Date "2016.06.07"]
[Round "4"]
[White "Philofive"]
[Black "Mvpag"]
[Result "1-0"]
[WhiteElo "2339"]
[BlackElo "2124"]
[TimeControl "180+2"]
[EndTime "11:51:16 PDT"]
[Termination "Philofive won by resignation"]

1. d4 {[%clk 0:02:58.8]} 1... d5 {[%clk 0:03:00.8]} 2. Bg5 {[%clk 0:02:58.8]}
2... Nf6 {[%clk 0:03:00.8]} 3. e3 {[%clk 0:02:59.4]} 3... e6 {[%clk 0:03:01.5]}
4. c4 {[%clk 0:02:56.7]} 4... Be7 {[%clk 0:02:59.5]} 5. Nc3 {[%clk 0:02:57.6]}
5... Nbd7 {[%clk 0:02:58.8]} 6. Nf3 {[%clk 0:02:58.8]} 6... b6 {[%clk
0:02:58.5]} 7. cxd5 {[%clk 0:02:58.9]} 7... exd5 {[%clk 0:02:59]} 8. Ne5 {[%clk
0:02:54.4]} 8... Bb7 {[%clk 0:02:55.8]} 9. Bb5 {[%clk 0:02:53.5]} 9... O-O
{[%clk 0:02:52.1]} 10. Nc6 {[%clk 0:02:52.9]} 10... Bxc6 {[%clk 0:02:49.2]} 11.
Bxc6 {[%clk 0:02:53.5]} 11... Rb8 {[%clk 0:02:48.3]} 12. O-O {[%clk 0:02:41.8]}
12... h6 {[%clk 0:02:44.2]} 13. Bh4 {[%clk 0:02:42]} 13... g5 {[%clk 0:02:27.3]}
14. Bg3 {[%clk 0:02:41.8]} 14... Kg7 {[%clk 0:02:12.1]} 15. Rc1 {[%clk
0:02:37.8]} 15... Ne4 {[%clk 0:02:07.4]} 16. Nxe4 {[%clk 0:02:26.5]} 16... dxe4
{[%clk 0:02:06.4]} 17. Bxe4 {[%clk 0:02:24.5]} 17... Bd6 {[%clk 0:02:03.2]} 18.
Bxd6 {[%clk 0:02:12.6]} 18... cxd6 {[%clk 0:02:03.4]} 19. Qf3 {[%clk 0:02:10.8]}
19... Nf6 {[%clk 0:01:59.7]} 20. Bd3 {[%clk 0:02:07.7]} 20... d5 {[%clk
0:01:55.7]} 21. Rc6 {[%clk 0:02:00.3]} 21... Rc8 {[%clk 0:01:51.9]} 22. Rfc1
{[%clk 0:02:00.8]} 22... Rxc6 {[%clk 0:01:51.9]} 23. Rxc6 {[%clk 0:02:00.4]}
23... Qe7 {[%clk 0:01:50.1]} 24. h3 {[%clk 0:01:47.2]} 24... Rd8 {[%clk
0:01:47.7]} 25. Qf5 {[%clk 0:01:36.9]} 25... Rd6 {[%clk 0:01:39.3]} 26. Rc8
{[%clk 0:01:33.7]} 26... Rd8 {[%clk 0:01:29.9]} 27. Rc6 {[%clk 0:01:33.6]} 27...
Rd6 {[%clk 0:01:30.3]} 28. Rc2 {[%clk 0:01:34.2]} 28... a5 {[%clk 0:01:23.4]}
29. a3 {[%clk 0:01:34.8]} 29... Rd7 {[%clk 0:01:21]} 30. Qe5 {[%clk 0:01:25.6]}
30... Qxe5 {[%clk 0:01:12.4]} 31. dxe5 {[%clk 0:01:26.6]} 31... Ne4 {[%clk
0:01:11.9]} 32. Rc6 {[%clk 0:01:09.3]} 32... Nc5 {[%clk 0:01:00.8]} 33. Bf5
{[%clk 0:01:08.4]} 33... Rb7 {[%clk 0:00:55.7]} 34. e6 {[%clk 0:01:01.3]} 34...
fxe6 {[%clk 0:00:53.5]} 35. Bxe6 {[%clk 0:01:02.4]} 35... Nxe6 {[%clk
0:00:39.8]} 36. Rxe6 {[%clk 0:01:02.4]} 36... Rd7 {[%clk 0:00:21.3]} 37. Rxb6
{[%clk 0:01:02.2]} 37... d4 {[%clk 0:00:22.9]} 38. exd4 {[%clk 0:01:02.9]} 38...
Rxd4 {[%clk 0:00:23.4]} 39. g3 {[%clk 0:01:01.5]} 39... a4 {[%clk 0:00:21.1]}
40. Rb4 {[%clk 0:00:56.9]} 40... Rd2 {[%clk 0:00:20.5]} 41. Kg2 {[%clk 0:00:56]}
41... Kg6 {[%clk 0:00:20.6]} 42. Kf3 {[%clk 0:00:55.6]} 42... h5 {[%clk
0:00:21.6]} 43. Rxa4 {[%clk 0:00:54.3]} 43... Rxb2 {[%clk 0:00:22.3]} 44. Rb4
{[%clk 0:00:55.3]} 44... Ra2 {[%clk 0:00:20.6]} 45. Rb3 {[%clk 0:00:54.1]} 45...
Kf5 {[%clk 0:00:20.2]} 46. g4+ {[%clk 0:00:53.3]} 46... hxg4+ {[%clk 0:00:19.3]}
47. hxg4+ {[%clk 0:00:54.9]} 47... Ke5 {[%clk 0:00:20.3]} 48. Ke3 {[%clk
0:00:55.2]} 48... Rc2 {[%clk 0:00:18.4]} 49. Rb5+ {[%clk 0:00:50.1]} 49... Kf6
{[%clk 0:00:18.8]} 50. Rb3 {[%clk 0:00:50.7]} 50... Rc4 {[%clk 0:00:19.1]} 51.
f3 {[%clk 0:00:50.2]} 51... Ke6 {[%clk 0:00:18.7]} 52. Kd3 {[%clk 0:00:50.7]}
52... Rf4 {[%clk 0:00:19.2]} 53. Kc2 {[%clk 0:00:50.6]} 53... Rc4+ {[%clk
0:00:19.1]} 54. Rc3 {[%clk 0:00:51]} 54... Rf4 {[%clk 0:00:19.4]} 55. Kb3 {[%clk
0:00:50.5]} 55... Kd5 {[%clk 0:00:20.3]} 56. a4 {[%clk 0:00:51.8]} 56... Rf7
{[%clk 0:00:17.6]} 57. a5 {[%clk 0:00:50.8]} 57... Kd4 {[%clk 0:00:16.8]} 58.
Kc2 {[%clk 0:00:41.2]} 58... Ra7 {[%clk 0:00:15.7]} 59. Ra3 {[%clk 0:00:40.8]}
59... Ra6 {[%clk 0:00:16.2]} 60. Kd2 {[%clk 0:00:40.2]} 60... Kc4 {[%clk
0:00:16.6]} 61. Ke3 {[%clk 0:00:40.5]} 61... Kb4 {[%clk 0:00:15.9]} 62. Ra1
{[%clk 0:00:41]} 62... Re6+ {[%clk 0:00:15.3]} 63. Kd4 {[%clk 0:00:40.3]} 63...
Kb5 {[%clk 0:00:14.9]} 64. a6 {[%clk 0:00:39.7]} 64... Re8 {[%clk 0:00:15.7]}
65. a7 {[%clk 0:00:40.5]} 65... Ra8 {[%clk 0:00:16.8]} 66. Ke5 {[%clk
0:00:42.1]} 66... Kc4 {[%clk 0:00:17.2]} 67. Kf6 {[%clk 0:00:43.3]} 67... Kd3
{[%clk 0:00:18.6]} 68. Kxg5 {[%clk 0:00:44.5]} 68... Ke3 {[%clk 0:00:19.8]} 69.
Ra3+ {[%clk 0:00:44.3]} 69... Kd4 {[%clk 0:00:17.1]} 70. Kf6 {[%clk 0:00:45.4]}
70... Rf8+ {[%clk 0:00:16.3]} 71. Ke7 {[%clk 0:00:45.6]} 71... Ra8 {[%clk
0:00:16.5]} 72. Kd7 {[%clk 0:00:47]} 72... Ke5 {[%clk 0:00:17.7]} 73. Kc7 {[%clk
0:00:48.2]} 73... Kf4 {[%clk 0:00:18.2]} 74. Kb7 {[%clk 0:00:49.3]} 1-0

[Event "*** Titled Tuesday 3|2 Blitz"]
[Site "Chess.com"]
[Date "2016.06.07"]
[Round "4"]
[White "NewBornNow"]
[Black "Indianlad"]
[Result "1-0"]
[WhiteElo "2560"]
[BlackElo "2524"]
[TimeControl "180+2"]
[EndTime "11:51:29 PDT"]
[Termination "NewBornNow won by resignation"]

1. e4 {[%clk 0:03:01.9]} 1... c6 {[%clk 0:03:01.4]} 2. d4 {[%clk 0:03:01.8]}
2... d5 {[%clk 0:03:03.3]} 3. e5 {[%clk 0:03:02.9]} 3... Bf5 {[%clk 0:03:04.9]}
4. Nf3 {[%clk 0:03:03.9]} 4... e6 {[%clk 0:03:06.4]} 5. Be2 {[%clk 0:03:04.8]}
5... h6 {[%clk 0:03:08]} 6. O-O {[%clk 0:03:05.4]} 6... Ne7 {[%clk 0:03:09.7]}
7. Nbd2 {[%clk 0:03:05.7]} 7... Nd7 {[%clk 0:03:08.1]} 8. Nb3 {[%clk 0:03:06.6]}
8... a5 {[%clk 0:03:08.7]} 9. a4 {[%clk 0:03:06.3]} 9... g5 {[%clk 0:03:09.8]}
10. Ne1 {[%clk 0:03:03.9]} 10... Bg7 {[%clk 0:03:07.8]} 11. Nd3 {[%clk
0:03:04.2]} 11... b6 {[%clk 0:03:07.1]} 12. f4 {[%clk 0:03:04.1]} 12... Qc7
{[%clk 0:03:02.3]} 13. Be3 {[%clk 0:02:58.7]} 13... gxf4 {[%clk 0:02:46.4]} 14.
Nxf4 {[%clk 0:02:56.6]} 14... O-O-O {[%clk 0:02:39.8]} 15. Nh5 {[%clk
0:02:55.8]} 15... Rdg8 {[%clk 0:02:40.1]} 16. Rc1 {[%clk 0:02:54.5]} 16... Bg6
{[%clk 0:02:37.5]} 17. Nf6 {[%clk 0:02:48.5]} 17... Bxf6 {[%clk 0:02:36.2]} 18.
exf6 {[%clk 0:02:47]} 18... Nf5 {[%clk 0:02:37.5]} 19. Bf4 {[%clk 0:02:37.2]}
19... e5 {[%clk 0:02:38.8]} 20. dxe5 {[%clk 0:02:34]} 20... Nxe5 {[%clk
0:02:40.7]} 21. Nd4 {[%clk 0:02:29.2]} 21... Nh4 {[%clk 0:02:37.1]} 22. g3
{[%clk 0:02:15.4]} 22... Be4 {[%clk 0:02:37.3]} 23. c4 {[%clk 0:02:12.7]} 23...
Nhg6 {[%clk 0:02:36]} 24. cxd5 {[%clk 0:02:08.3]} 24... Nxf4 {[%clk 0:02:36.8]}
25. Rxf4 {[%clk 0:02:05.8]} 25... Bxd5 {[%clk 0:02:30.7]} 26. Nb5 {[%clk
0:01:48.5]} 26... Qd8 {[%clk 0:02:23.3]} 27. Qd4 {[%clk 0:01:47.2]} 27... Ng6
{[%clk 0:02:16.4]} 28. Rf5 {[%clk 0:01:40.9]} 28... Kb7 {[%clk 0:02:17.5]} 29.
Rxd5 {[%clk 0:01:21.2]} 29... Qxd5 {[%clk 0:02:16.8]} 30. Nd6+ {[%clk
0:01:21.2]} 30... Ka7 {[%clk 0:02:08.3]} 31. Qxd5 {[%clk 0:01:21.7]} 31... cxd5
{[%clk 0:02:09.3]} 32. Rc7+ {[%clk 0:01:21.6]} 32... Kb8 {[%clk 0:02:09.4]} 33.
Rxf7 {[%clk 0:01:16.2]} 33... Rd8 {[%clk 0:02:00.9]} 34. Rb7+ {[%clk 0:01:15.6]}
34... Ka8 {[%clk 0:02:00.3]} 35. Rxb6 {[%clk 0:01:16.1]} 35... Ne5 {[%clk
0:01:58.4]} 36. Nb5 {[%clk 0:01:00.2]} 36... d4 {[%clk 0:01:40.6]} 37. Re6
{[%clk 0:00:58.4]} 37... d3 {[%clk 0:01:36.6]} 38. Rxe5 {[%clk 0:00:56.5]} 38...
dxe2 {[%clk 0:01:37.8]} 39. Rxe2 {[%clk 0:00:56.9]} 39... Kb7 {[%clk 0:01:36.9]}
40. Kg2 {[%clk 0:00:51.1]} 40... Kc6 {[%clk 0:01:33.2]} 41. Kh3 {[%clk
0:00:46.2]} 41... Rhf8 {[%clk 0:01:09.3]} 42. Re6+ {[%clk 0:00:45.9]} 42... Kd5
{[%clk 0:01:08.3]} 43. Ra6 {[%clk 0:00:45.3]} 43... Ke5 {[%clk 0:01:05.8]} 44.
Rxa5 {[%clk 0:00:37.3]} 44... Rxf6 {[%clk 0:01:07.3]} 45. Nc3+ {[%clk
0:00:36.1]} 45... Kd4 {[%clk 0:01:02.9]} 46. Rb5 {[%clk 0:00:33.2]} 46... Kc4
{[%clk 0:01:02.1]} 47. Rb7 {[%clk 0:00:32.8]} 47... Rf2 {[%clk 0:00:58]} 48. a5
{[%clk 0:00:31.9]} 48... Rdd2 {[%clk 0:00:51.8]} 49. a6 {[%clk 0:00:29.2]} 49...
Rxh2+ {[%clk 0:00:31.5]} 50. Kg4 {[%clk 0:00:29.7]} 50... Rxb2 {[%clk
0:00:25.7]} 51. Rxb2 {[%clk 0:00:29.1]} 51... Rxb2 {[%clk 0:00:25.6]} 52. a7
{[%clk 0:00:29.8]} 52... Kxc3 {[%clk 0:00:25.3]} 53. a8=Q {[%clk 0:00:29.4]}
53... Rh2 {[%clk 0:00:22.2]} 54. Qf3+ {[%clk 0:00:27.5]} 54... Kd2 {[%clk
0:00:22.6]} 55. Kf4 {[%clk 0:00:26.9]} 55... Ke1 {[%clk 0:00:23]} 56. Ke3 {[%clk
0:00:24.5]} 56... h5 {[%clk 0:00:21.7]} 57. Qf6 {[%clk 0:00:20.9]} 57... Re2+
{[%clk 0:00:18.1]} 58. Kd3 {[%clk 0:00:22]} 58... Rd2+ {[%clk 0:00:19.1]} 59.
Kc3 {[%clk 0:00:23.1]} 59... Rh2 {[%clk 0:00:18.8]} 60. Qf3 {[%clk 0:00:23.2]}
60... Re2 {[%clk 0:00:08.2]} 61. Qxh5 {[%clk 0:00:22.6]} 61... Re3+ {[%clk
0:00:09.6]} 62. Kd4 {[%clk 0:00:22.9]} 62... Rxg3 {[%clk 0:00:10.4]} 63. Qh2
{[%clk 0:00:23.1]} 63... Rf3 {[%clk 0:00:10.6]} 64. Ke4 {[%clk 0:00:22.9]} 64...
Rf2 {[%clk 0:00:11.6]} 65. Qg3 {[%clk 0:00:23.5]} 65... Ke2 {[%clk 0:00:13.5]}
66. Qd3+ {[%clk 0:00:22.5]} 66... Ke1 {[%clk 0:00:14.6]} 67. Qb1+ {[%clk
0:00:22.7]} 67... Ke2 {[%clk 0:00:15.1]} 68. Qc1 {[%clk 0:00:23.6]} 68... Rf1
{[%clk 0:00:15.4]} 69. Qc2+ {[%clk 0:00:24.5]} 69... Ke1 {[%clk 0:00:16.8]} 70.
Ke3 {[%clk 0:00:24.4]} 1-0